{"text_format":"3","workbook":"xlsx","n_sheets":5,"sheets":["Информация о Чемпионате","Общая инфраструктура","Рабочее место конкурсантов","Расходные материалы","Личный инструмент участника"],"not_rendered":{"external_links":1},"read":"whole","date_system":"1900"}

{"sheet":"Информация о Чемпионате","index":0,"n_rows":24,"n_cols":2,"rows_kept":24}
[]
[]
["Компетенция","Специалист по анализу данных (BI-аналитик)"]
["Наименование этапа Чемпионата","Региональный этап Чемпионата по профессиональному мастертсву \"Профессионалы\"  в 2025 г."]
["Субъект РФ (регион проведения)","Республика Карелия"]
["Базовая организация расположения конкурсной площадки","ГАПОУ РК \"Петрозаводский архитектурно-строительный техникум\""]
["Адрес конкурсной площадки","Республика Карелия, г. Петрозаводск, ул. Мурманская, д.30"]
["Даты проведения","17.02.2025-28.02.2025"]
["Главный эксперт","Бабука Ольга Олеговна"]
["Электронная почта ГЭ","babuka.olga@mail.ru"]
["Моб.телефон ГЭ",79381607745]
["Технический администратор площадки","Бекренева Вера Владимировна"]
["Электронная почта ТАП","mosunovavv@rambler.ru"]
["Моб.телефон ТАП",79214576182]
["Количество конкурсантов (команд)",5]
["Количество рабочих мест",5]
["Количество экспертов (ГЭ+ЭН+ИЭ+РГО(итоговый этап)+МЭ(финал)) + ТАП",8]
[]
["ЭН - эксперт-наставник"]
["ГЭ - главный эксперт"]
["ИЭ - индустриальный эксперт"]
["РГО - руководитель группы оценки"]
["МЭ - международный эксперт"]
["ТАП - технический администратор площадки"]

{"sheet":"Общая инфраструктура","index":1,"n_rows":80,"n_cols":8,"rows_kept":80,"merged":[[0,0,0,7],[1,0,1,7],[2,0,2,7],[3,0,3,7],[4,0,4,7],[5,0,5,7],[6,0,6,1],[6,2,6,7],[7,0,7,2],[7,3,7,7],[8,0,8,1],[8,2,8,7],[9,0,9,1],[9,2,9,3],[9,4,9,5],[9,6,9,7],[10,0,10,1],[10,2,10,3],[10,4,10,5],[10,6,10,7],[11,0,11,1],[11,2,11,7],[12,0,12,1],[12,2,12,7],[13,0,13,1],[13,2,13,7],[14,0,14,1],[14,2,14,7],[15,0,15,7],[16,0,16,7],[17,0,17,7],[18,0,18,7],[19,0,19,7],[20,0,20,7],[21,0,21,7],[22,0,22,7],[23,0,23,7],[24,0,24,7],[37,0,37,7],[38,0,38,7],[39,0,39,7],[40,0,40,7],[45,0,45,7],[46,0,46,7],[47,0,47,7],[48,0,48,7],[49,0,49,7],[50,0,50,7],[51,0,51,7],[52,0,52,7],[54,0,54,7],[60,0,60,7],[63,0,63,7],[65,0,65,7],[75,0,75,7],[81,0,81,7]]}
["ПРОЕКТ"]
["Инфраструктурный лист для оснащения конкурсной площадки"]
[{"$f":"'Информация о Чемпионате'!B4","v":"Региональный этап Чемпионата по профессиональному мастертсву \"Профессионалы\"  в 2025 г."}]
["по компетенции"]
[{"$f":"'Информация о Чемпионате'!B3","v":"Специалист по анализу данных (BI-аналитик)"}]
["Основная информация о конкурсной площадке:"]
["Субъект Российской Федерации:",null,"Республика Карелия"]
["Базовая организация расположения конкурсной площадки:",null,null,"ГАПОУ РК \"Петрозаводский архитектурно - строительный техникум\""]
["Адрес базовой организации: ",null,"Республика Карелия, г. Петрозаводск, ул. Мурманская, д.30"]
["Главный эксперт: ",null,"Бабука Ольга Олеговна",null,{"$f":"'[1]Информация о Чемпионате'!B10","v":"babuka.olga@mail.ru"},null,{"$f":"'[1]Информация о Чемпионате'!B11","v":89381607745}]
["Технический администратор площадки: ",null,"Бекренева Вера Владимировна",null,{"$f":"'Информация о Чемпионате'!B13","v":"mosunovavv@rambler.ru"},null,{"$f":"'Информация о Чемпионате'!B14","v":79214576182}]
["Количество экспертов (ЭН+ГЭ+ИЭ) + ТАП:",null,8]
["Количество конкурсантов (команд): ",null,5]
["Количество рабочих мест: ",null,5]
["Даты проведения: ",null,"17.02.2025-28.02.2025"]
["Общая зона конкурсной площадки (оборудование, инструмент, мебель)"]
["Требования к обеспечению зоны (коммуникации, площадь, сети, количество рабочих мест и др.): "]
["Площадь зоны: не менее 20 кв.м."]
["Освещение: Допустимо верхнее искусственное освещение не менее 300 люкс "]
["Интернет : Проводной Интернет - 2 точки. Общая пропускная способность 10 Мбит/сек"]
["Все компьютеры объединены в локальную сеть (включая рабочие места конкурсантов) под управлением сетевой ОС "]
["Электричество: подключения к сети по 220 Вольт\t"]
["Покрытие пола: критически важные характеристики позиции отсутствуют"]
["Контур заземления для электропитания и сети слаботочных подключений (при необходимости): согласно технических требований к используемому оборудованию"]
[]
["№","Наименование ","Краткие (рамочные) технические характеристики","Вид","Количество","Единица измерения","Итоговое количество","Рекомендации представителей индустрии (указывается конкретное оборудование)"]
[1,"Офисный стол","Ширина 120 см., глубина 50 см., высота 75 см.","Мебель",7,"шт",7,"посадочные места для участников и экспертов"]
[2,"Офисный стул","Офисное кресло Фабрикант Стандарт","Мебель",14,"шт",14]
[3,"Угловой стол для ПК для брифинга","-","Мебель",1,"шт",1]
[3,"Корзина мусорная"," - ","Клининг",1,"шт",1]
[4,"Комплект ЭВМ: персональный компьютер с двумя мониторами, с клавиатурой, мышкой, комплектом необходимых кабелей","Процессор intel I5-10400 2.9Ghz/8GT/12Mb s1200 tray\nМодуль памяти DDR4 PC23400/2933Mhz, 16GB\nМышь USB Black1200dpi opt.\nКлавиатура USB Black CBR PX 01-19\nКорпус RAMEC AU/1xUSB3.0/2xUSB2.02x120FAN/600W\nАппаратный ключ RAMEC ACCESS PROTECTION\nНакопитель SSD Intel 512Gb SSDPEKNW512G8X1 M.2 PCI-E\nСистемная плата MSI H510M-A PRO\nКулер Cooler Master Xdream P115, RP-X115-40PK-R1\n","Оборудование ИТ",1,"шт",1,"ПК для брифинга, подключен к проектору"]
[5,"Проектор с экраном","Проектор Optoma S381","Оборудование ИТ",1,"шт",1]
[6,"Операционная система","Windows 10 Pro, Тип системы 64-разрядная операционная система, Версия 21H2","ПО",1,"шт",1]
[7,"Редактор презентаций","LibreOffice 24.8.4 Impress","ПО",1,"шт",1,"LibreOffice 24.8.4 Impress"]
[8,"Текстовый редактор","LibreOffice 24.8.4 Writer","ПО",1,"шт",1,"LibreOffice 24.8.4 Writer"]
[9,"Веб-браузер","Microsoft Edge,  Яндекс","ПО",1,"шт",1,"Microsoft Edge,  Яндекс"]
[10,"Программа для чтения аппаратно-независимых документов","Adobe Acrobat Reader DC ","ПО",1,"шт",1,"Adobe Acrobat Reader DC "]
["Комната Конкурсантов (оборудование, инструмент, мебель) (по количеству конкурсантов)"]
["Требования к обеспечению зоны (коммуникации, площадь, сети, количество рабочих мест и др.): "]
["Площадь зоны: не менее 15 кв.м."]
["Освещение: Допустимо верхнее искусственное освещение не менее 300 люкс "]
["№","Наименование ","Краткие (рамочные) технические характеристики","Вид","Количество","Единица измерения","Итоговое количество","Рекомендации представителей индустрии (указывается конкретное оборудование)"]
[1,"Офисный стол","(ШхГхВ) 1200х700х750","Мебель",1,"шт. ",5,"посадочные места для участников "]
[2,"Офисный стул","Офисное кресло Фабрикант Стандарт","Мебель",1,"шт. ",5,"посадочные места для участников "]
[3,"Мусорная корзина","Офисная","Клининг",1,"шт ",1]
["Комната Экспертов (включая комнату Главного эксперта) (оборудование, инструмент, мебель) (по количеству экспертов)"]
["Требования к обеспечению зоны (коммуникации, площадь, сети, количество рабочих мест и др.): "]
["Площадь зоны: не менее 20 кв.м."]
["Освещение: Допустимо верхнее искусственное освещение не менее 300 люкс "]
["Интернет : Проводной Интернет - 2 точки. Общая пропускная способность 10Мбит/сек"]
["Все компьютеры объединены в локальную сеть (включая рабочие места конкурсантов) под управлением сетевой ОС "]
["Электричество: 3 точек 220Вольт, суммарная мощность исходя из пиковой нагрузки используемого оборудования"]
["Контур заземления для электропитания и сети слаботочных подключений (при необходимости): согласно технических требований к используемому оборудованию"]
["№","Наименование ","Краткие (рамочные) технические характеристики","Вид","Количество","Единица измерения","Итоговое количество","Рекомендации представителей индустрии (указывается конкретное оборудование)"]
["Оборудование экспертов"]
[1,"Офисный стол","(ШхГхВ) 1100х700х750","Мебель",3,"шт",3]
[2,"Кресло офисное","Офисное кресло Фабрикант Стандарт","Мебель",6,"шт",6]
[3,"Мусорная корзина","Офисная","Клининг",1,"шт",1]
[4,"Комплект ЭВМ: персональный компьютер c подключением двух мониторов, с клавиатурой, мышкой, комплектом необходимых кабелей; для работы группы оценки","Процессор intel I3-10100 3.6Ghz/8GT/6Mb oem\nМодуль памяти Foxline DDR4 8Gb 3200МГц\nМышь USB Black1200dpi opt.\nКлавиатура USB Black CBR PX 01-19\nКорпус GameMax G501 (600W) CoolBay VX\nНакопитель SSD Crucial 240Gb 2,5'' CT240BX500SSD1 SATAIII\nСистемная плата MSI H510M-A PRO\nКулер Cooler Master Xdream P115, RP-X115-40PK-R1\n","Оборудование ИТ",1,"шт",1]
[5,"Монитор с комплектом кабелей, совместим с комеплектом ЭВМ","PHILIPS 223V5L, 21,5'","Оборудование ИТ",2,"шт",2]
["Оборудование главного эксперта"]
[1,"Принтер, подключенный к ЭВМ главного эксперта","Принтер лазерный Brother HL-L2300DR","Оборудование ИТ",1,"шт",{"$f":"E62","v":1}]
[2,"Комплект ЭВМ: персональный компьютер с монитором -для Главного эксперта","Процессор intel I3-10100 3.6Ghz/8GT/6Mb oem\nМодуль памяти Foxline DDR4 8Gb 3200МГц\nМышь USB Black1200dpi opt.\nКлавиатура USB Black CBR PX 01-19\nКорпус GameMax G501 (600W) CoolBay VX\nНакопитель SSD Crucial 240Gb 2,5'' CT240BX500SSD1 SATAIII\nСистемная плата MSI H510M-A PRO\nКулер Cooler Master Xdream P115, RP-X115-40PK-R1\n","Оборудование ИТ",1,"шт.",1]
["Сервер"]
[1,"Компьютер-сервер для предоставления услуг файл-сервера для участников и экспертов с серверной операционной системой","Операционная система Windows Server 2019 Standard                                                  ЦПУ:\n- тактовая частота 2,1 ГГц.;\n- количество физических ядер 4;\n- количество потоков 8;\nОЗУ:\n- объем 32 Гб.;\nПЗУ:\n- SSD объемом 424 Гб.","Оборудование ИТ",1,"шт.",1]
["Программное обеспечение"]
[1,"Операционная система","Windows 10 Pro, Тип системы 64-разрядная операционная система, Версия 21H2","ПО",6,"шт",6]
[2,"Программное обеспечение для разработки программного кода","ПО Anaconda  — 2024.06-01","ПО",6,"шт",{"$f":"E68","v":6},"ПО Anaconda — 2024.06-01"]
[3,"Программное обеспечение для просмотра файлов в формате .pdf","Adobe Acrobat Reader DC ","ПО",6,"шт",6,"Adobe Acrobat Reader DC "]
[4,"Интернет-браузер","Microsoft Edge,  Яндекс","ПО",6,"шт",6,"Microsoft Edge,  Яндекс"]
[5,"Пакет офисных программ","LibreOffice 24.8.4","ПО",6,"шт",6,"LibreOffice 24.8.4"]
[6,"Программное обеспечение для записи экрана","Кодирование с использованием H264 (x264) и AAC.\nПоддержка технологии Intel Quick Sync Video (QSV) и NVIDIA NVENC.\nВозможность добавлять неограниченное количество сцен и источников.\nРабота с протоколом RTMP.\nЗапись видео с экрана компьютера, веб-камеры и других источников в формате MP4 или FLV.\nЗахват игры с использованием GPU.\nЗапись видео с различных устройств с помощью DirectShow","ПО",6,"шт",6,"OBS Studio 31.0.1"]
[7,"ПО СУБД","MySQL Workbench  8.0.38.","ПО",1,"копия (на 1 раб.место) ",6,"MySQL Workbench  8.0.38."]
[8,"Программное обеспечение для визуализации и анализа данных числовых и текстовых данных.","Yandex DataLens ","ПО",1,"шт ( на 1 раб.место) ",6,"Yandex DataLens "]
[9,"Программное обеспечение для сетевого анализа данных","Gephi 0.9.2","ПО",1,"шт ( на 1 раб.место) ",6,"Gephi 0.9.2"]
["Охрана труда и техника безопасности"]
["№","Наименование ","Краткие (рамочные) технические характеристики","Вид","Количество","Единица измерения","Итоговое количество","Рекомендации представителей индустрии (указывается конкретное оборудование)"]
[1,"Огнетушитель","ОУ-1","Охрана труда",1,"шт",{"$f":"E78","v":1}]
[2,"Аптечка первой помощи","Для сотрудников","Охрана труда",1,"шт",{"$f":"E79","v":1}]
[3,"Кулер с питьевой водой или бутылированная вода",null,"Охрана труда",1,"шт",{"$f":"E80","v":1}]

{"sheet":"Рабочее место конкурсантов","index":2,"n_rows":37,"n_cols":8,"rows_kept":37,"merged":[[0,0,0,7],[1,0,1,7],[2,0,2,7],[3,0,3,7],[4,0,4,7],[5,0,5,7],[6,0,6,1],[6,2,6,7],[7,0,7,2],[7,3,7,7],[8,0,8,1],[8,2,8,7],[9,0,9,1],[9,2,9,3],[9,4,9,5],[9,6,9,7],[10,0,10,1],[10,2,10,3],[10,4,10,5],[10,6,10,7],[11,0,11,1],[11,2,11,7],[12,0,12,1],[12,2,12,7],[13,0,13,1],[13,2,13,7],[14,0,14,1],[14,2,14,7],[15,0,15,7],[16,0,16,7],[17,0,17,7],[18,0,18,7],[19,0,19,7],[20,0,20,7],[21,0,21,7],[22,0,22,7]]}
["ПРОЕКТ"]
["Инфраструктурный лист для оснащения конкурсной площадки"]
[{"$f":"'Информация о Чемпионате'!B4","v":"Региональный этап Чемпионата по профессиональному мастертсву \"Профессионалы\"  в 2025 г."}]
["по компетенции"]
[{"$f":"'Информация о Чемпионате'!B3","v":"Специалист по анализу данных (BI-аналитик)"}]
["Основная информация о конкурсной площадке:"]
["Субъект Российской Федерации:",null,"Республика Карелия"]
["Базовая организация расположения конкурсной площадки:",null,null,"ГАПОУ РК \"Петрозаводский архитектурно - строительный техникум\""]
["Адрес базовой организации: ",null,"Республика Карелия, г. Петрозаводск, ул. Мурманская, д.30"]
["Главный эксперт: ",null,"Бабука Ольга Олеговна",null,{"$f":"'[1]Информация о Чемпионате'!B10","v":"babuka.olga@mail.ru"},null,{"$f":"'[1]Информация о Чемпионате'!B11","v":89381607745}]
["Технический администратор площадки: ",null,{"$f":"'Информация о Чемпионате'!B12","v":"Бекренева Вера Владимировна"},null,{"$f":"'Информация о Чемпионате'!B13","v":"mosunovavv@rambler.ru"},null,{"$f":"'Информация о Чемпионате'!B14","v":79214576182}]
["Количество экспертов (ЭН+ГЭ+ИЭ) + ТАП:",null,8]
["Количество конкурсантов (команд): ",null,5]
["Количество рабочих мест: ",null,5]
["Даты проведения: ",null,"17.02.2025-28.02.2025"]
["Рабочее место Конкурсанта (основное оборудование, вспомогательное оборудование, инструмент (по количеству рабочих мест)"]
["Требования к обеспечению зоны (коммуникации, площадь, сети, количество рабочих мест и др.): "]
["Площадь зоны: не менее 2,5 кв.м."]
["Освещение: Верхнее искусственное освещение"]
["Интернет: Проводной Интернет 1 точка на каждое рабочее место. Общая пропускная способность 10Мбит/сек на каждое рабочее место"]
["Все компьютеры объединены в локальную сеть (включая рабочие места экспертов) под управлением сетевой ОС "]
["Электричество: 220Вольт на каждое рабочее место, суммарная мощность исходя из пиковой нагрузки используемого оборудования"]
["Контур заземления для электропитания и сети слаботочных подключений (при необходимости): согласно технических требований к используемому оборудованию"]
["№","Наименование ","Краткие (рамочные) технические характеристики","Вид","Количество","Единица измерения","Итоговое количество","Рекомендации представителей индустрии (указывается конкретное оборудование)"]
[1,"Стол компьютерный","(ШхГхВ) 1100х700х750","Мебель",1,"шт ( на 1 раб.место) ",{"$f":"$C$13","v":5}]
[2,"Офисный стул","Офисное кресло Фабрикант Стандарт","Мебель",1,"шт. ",5]
[3,"Комплект ЭВМ: персональный компьютер с двумя мониторами, с клавиатурой, мышкой, комплектом необходимых кабелей","Процессор intel I3-10100 3.6Ghz/8GT/6Mb oem\nМодуль памяти Foxline DDR4 8Gb 3200МГц\nМышь USB Black1200dpi opt.\nКлавиатура USB Black CBR PX 01-19\nКорпус GameMax G501 (600W) CoolBay VX\nНакопитель SSD Crucial 240Gb 2,5'' CT240BX500SSD1 SATAIII\nСистемная плата MSI H510M-A PRO\nКулер Cooler Master Xdream P115, RP-X115-40PK-R1\n","Оборудование ИТ",1,"шт. ",5]
[4,"Монитор с комплектом кабелей, совместим с комеплектом ЭВМ","PHILIPS 223V5L, 21,5'","Оборудование ИТ",2,"шт. ",10]
[5,"Операционная система","Windows 10 Pro, Тип системы 64-разрядная операционная система, Версия 21H2","ПО",1,"шт",5]
[6,"Программное обеспечение для разработки программного кода","ПО Anaconda — 2024.06-01","ПО",1,"шт ( на 1 раб.место) ",5,"ПО Anaconda — 2024.06-01"]
[7,"Программное обеспечение для просмотра файлов в формате .pdf","Adobe Acrobat Reader DC ","ПО",1,"шт ( на 1 раб.место) ",5,"Adobe Acrobat Reader DC "]
[8,"Интернет-браузер","Microsoft Edge,  Яндекс","ПО",1,"шт ( на 1 раб.место) ",{"$f":"G31","v":5},"Microsoft Edge,  Яндекс"]
[9,"Пакет офисных программ","LibreOffice 24.8.4","ПО",1,"шт ( на 1 раб.место) ",5,"LibreOffice 24.8.4"]
[10,"Программное обеспечение для записи экрана","Кодирование с использованием H264 (x264) и AAC.\nПоддержка технологии Intel Quick Sync Video (QSV) и NVIDIA NVENC.\nВозможность добавлять неограниченное количество сцен и источников.\nРабота с протоколом RTMP.\nЗапись видео с экрана компьютера, веб-камеры и других источников в формате MP4 или FLV.\nЗахват игры с использованием GPU.\nЗапись видео с различных устройств с помощью DirectShow","ПО",1,"шт ( на 1 раб.место) ",5,"OBS Studio 31.0.1"]
[11,"ПО СУБД","MySQL Workbench  8.0.38.","ПО",1,"копия (на 1 раб.место) ",5,"MySQL Workbench  8.0.38."]
[12,"Программное обеспечение для визуализации и анализа данных числовых и текстовых данных.","Yandex DataLens ","ПО",1,"шт ( на 1 раб.место) ",5,"Yandex DataLens "]
[13,"Программное обеспечение для сетевого анализа данных","Gephi 0.9.2","ПО",1,"шт ( на 1 раб.место) ",{"$f":"G36","v":5},"Gephi 0.9.2"]

{"sheet":"Расходные материалы","index":3,"n_rows":39,"n_cols":8,"rows_kept":39,"merged":[[0,0,0,7],[1,0,1,7],[2,0,2,7],[3,0,3,7],[4,0,4,7],[5,0,5,7],[6,0,6,1],[6,2,6,7],[7,0,7,2],[7,3,7,7],[8,0,8,1],[8,2,8,7],[9,0,9,1],[9,2,9,3],[9,4,9,5],[9,6,9,7],[10,0,10,1],[10,2,10,3],[10,4,10,5],[10,6,10,7],[11,0,11,1],[11,2,11,7],[12,0,12,1],[12,2,12,7],[13,0,13,1],[13,2,13,7],[14,0,14,1],[14,2,14,7],[15,0,15,7],[21,0,21,7]]}
["ПРОЕКТ"]
["Инфраструктурный лист для оснащения конкурсной площадки"]
[{"$f":"'Информация о Чемпионате'!B4","v":"Региональный этап Чемпионата по профессиональному мастертсву \"Профессионалы\"  в 2025 г."}]
["по компетенции"]
[{"$f":"'Информация о Чемпионате'!B3","v":"Специалист по анализу данных (BI-аналитик)"}]
["Основная информация о конкурсной площадке:"]
["Субъект Российской Федерации:",null,"Республика Карелия"]
["Базовая организация расположения конкурсной площадки:",null,null,"ГАПОУ РК \"Петрозаводский архитектурно - строительный техникум\""]
["Адрес базовой организации: ",null,"Республика Карелия, г. Петрозаводск, ул. Мурманская, д.30"]
["Главный эксперт: ",null,"Бабука Ольга Олеговна",null,{"$f":"'[1]Информация о Чемпионате'!B10","v":"babuka.olga@mail.ru"},null,{"$f":"'[1]Информация о Чемпионате'!B11","v":89381607745}]
["Технический администратор площадки: ",null,{"$f":"'Информация о Чемпионате'!B12","v":"Бекренева Вера Владимировна"},null,{"$f":"'Информация о Чемпионате'!B13","v":"mosunovavv@rambler.ru"},null,{"$f":"'Информация о Чемпионате'!B14","v":79214576182}]
["Количество экспертов (ЭН+ГЭ+ИЭ) + ТАП:",null,8]
["Количество конкурсантов (команд): ",null,5]
["Количество рабочих мест: ",null,5]
["Даты проведения: ",null,"17.02.2025-28.02.2025"]
["Рабочее место Конкурсанта (расходные материалы по количеству конкурсантов)"]
["№","Наименование ","Краткие (рамочные) технические характеристики","Вид","Количество","Единица измерения","Итоговое количество","Рекомендации представителей индустрии (указывается конкретное оборудование)"]
[1,"Листы бумаги формата А4","бумага для принтера","Расходные материалы",50,"шт ( на 1 конкурсанта) ",250]
[2,"Ручка шариковая","критически важные характеристики позиции отсутствуют","Расходные материалы",1,"шт ( на 1 конкурсанта) ",5]
[3,"Простой карандаш ","критически важные характеристики позиции отсутствуют","Расходные материалы",1,"шт ( на 1 конкурсанта) ",5]
[4,"Папка для хранения бумаг формата А4","закрывающаяся","Расходные материалы",1,"шт ( на 1 конкурсанта) ",5]
["Расходные материалы на всех конкурсантов и экспертов"]
["№","Наименование ","Краткие (рамочные) технические характеристики","Вид","Количество","Единица измерения","Итоговое количество","Рекомендации представителей индустрии (указывается конкретное оборудование)"]
[1,"Бумага А4","критически важные характеристики позиции отсутствуют","Расходные материалы",10,"пачка 500 листов",{"$f":"E24","v":10}]
[2,"Скотч","критически важные характеристики позиции отсутствуют","Расходные материалы",1,"шт",1]
[3,"Скотч двусторонний","критически важные характеристики позиции отсутствуют","Расходные материалы",1,"шт",1]
[4,"Ручка шариковая","критически важные характеристики позиции отсутствуют","Расходные материалы",50,"шт",1]
[5,"Степлер со скобами","24/6","Расходные материалы",1,"шт",1]
[6,"Скрепки канцелярские","критически важные характеристики позиции отсутствуют","Расходные материалы",1,"упак",1]
[7,"Файлы А4","критически важные характеристики позиции отсутствуют","Расходные материалы",2,"упак",1]
[8,"Маркер черный","критически важные характеристики позиции отсутствуют","Расходные материалы",1,"шт",1]
[9,"Ножницы","критически важные характеристики позиции отсутствуют","Расходные материалы",2,"шт",1]
[10,"Линейка","не менее 30 см","Расходные материалы",2,"шт",1]
[11,"Дырокол для листов","толщина пробивки 30 листов","Расходные материалы",1,"шт",1]
[12,"Простой карандаш ","критически важные характеристики позиции отсутствуют","Расходные материалы",25,"шт",1]
[13,"Точилка для карандашей","критически важные характеристики позиции отсутствуют","Расходные материалы",1,"шт",1]
[14,"Нож канцелярский","критически важные характеристики позиции отсутствуют","Расходные материалы",2,"шт",1]
[15,"Нейлоновые стяжки для крепления проводов","критически важные характеристики позиции отсутствуют","Расходные материалы",5,"уп",1]
[19,"Папка-регистратор 75 мм","критически важные характеристики позиции отсутствуют","Расходные материалы",2,"шт",1]

{"sheet":"Личный инструмент участника","index":4,"n_rows":8,"n_cols":7,"rows_kept":8,"merged":[[0,0,0,6],[1,0,1,6],[2,0,2,6],[3,0,3,6],[4,0,4,6],[5,0,5,6]]}
["ПРОЕКТ"]
["Инфраструктурный лист для оснащения конкурсной площадки"]
[{"$f":"'Информация о Чемпионате'!B4","v":"Региональный этап Чемпионата по профессиональному мастертсву \"Профессионалы\"  в 2025 г."}]
["по компетенции"]
[{"$f":"'Информация о Чемпионате'!B3","v":"Специалист по анализу данных (BI-аналитик)"}]
["Личный инструмент конкурсанта"]
["№","Наименование ","Краткие (рамочные) технические характеристики","Вид","Количество","Единица измерения","Примечание "]
[1,"Индивидуальное периферийное оборудование по списку: мышь, клавиатура, проводная гарнитура","В соотвествии с требованиями КЗ"]